Cogmind - Beta 10.2 @@@ ROGUE MODE // 2022.01.24 @ 20:07:55 Player: lumberblack Result: Destroyed by 8R-AWN with 8R-AWN's Boregun Performance ------------- Evolutions (0) 0 Regions Visited (3) 600 Robots Destroyed (17) 85 Value Destroyed (195) 195 Prototype IDs (25) 500 Alien Tech Used (0) 0 Bonus (300) 300 TOTAL SCORE: 1680 Bonus ------- Aligned with FarCom 300 Cogmind --------- Core Integrity 0/250 Matter 131/300 Energy 100/100 System Corruption 0% Temperature Cool (0) Movement Walking (90) Location -10/Exiles Parts ------- > --- POWER (1) -------- (None) > --- PROPULSION (2) --- Potential Leg > --- UTILITY (2) ------ (None) > --- WEAPON (2) ------- (None) > --- INVENTORY (4) ---- Mini Grenade Launcher Mini Grenade Launcher Plasma Cutter Peak State ------------ > --- POWER ------------ Ion Engine > --- PROPULSION ------- Potential Leg Potential Leg > --- UTILITY ---------- Large Storage Unit Large Storage Unit > --- WEAPON ----------- Mini Grenade Launcher Mini Grenade Launcher > --- INVENTORY -------- Flying Fortress v7 Superbattery High-capacity Matter Pod Light Armor Plating Light Armor Plating Light Armor Plating Light Armor Plating Light Armor Plating Autogun Autogun Autogun Autogun Plasma Cutter [Rating: 32] Favorites ----------- Power Ion Engine Engine Ion Engine Propulsion Light Treads Treads Light Treads Leg Potential Leg Wheel Wheel Utility Large Storage Unit Device Improved Terrain Scanner Storage Large Storage Unit Protection Light Armor Plating Weapon Mini Grenade Launcher Energy Gun Small Laser Ballistic Gun Assault Rifle Launcher Mini Grenade Launcher Special Weapon Plasma Cutter Build | -11 -10 -10 -10 ------- Run | Scr Mat Min Exi Slots Evolved . | . . . . Power . | . . . . Propulsion . | . . . . Utility . | . . . . Weapon . | . . . . Parts Attached 38 | 5 18 . 15 Power 2 | . 2 . . Engine 2 | . 2 . . Core . | . . . . Reactor . | . . . . Propulsion 7 | 3 2 . 2 Treads 3 | 1 2 . . Leg 2 | . . . 2 Wheel 2 | 2 . . . Hover . | . . . . Flight . | . . . . Utility 11 | 1 6 . 4 Device 1 | 1 . . . Storage 4 | . 4 . . Processor . | . . . . Hackware . | . . . . Protection 6 | . 2 . 4 Artifact . | . . . . Weapon 18 | 1 8 . 9 Energy Gun . | . . . . Energy Cannon . | . . . . Ballistic Gun 11 | 1 4 . 6 Ballistic Cannon . | . . . . Launcher 6 | . 4 . 2 Special Weapon 1 | . . . 1 Impact Weapon . | . . . . Slashing Weapon . | . . . . Piercing Weapon . | . . . . Special Melee Weapon . | . . . . Unidentified Prototypes . | . . . . Parts Lost 10 | . . . 10 Power 1 | . . . 1 Propulsion 1 | . . . 1 Utility 4 | . . . 4 Weapon 4 | . . . 4 Highest Loss Streak 8 | . . . 8 Average Slot Usage (%) 98 | . 99 100 91 Engine 13 | . 14 14 12 Treads 25 | . 27 28 7 Leg 2 | . . . 20 Storage 23 | . 18 28 14 Protection 3 | . 8 . 9 Ballistic Gun 8 | . 27 . 6 Launcher 19 | . . 28 19 Naked Turns . | . . . . Heaviest Build 43 | 14 43 39 39 Greatest Support 60 | 20 40 40 60 Greatest Overweight (x) 12 | 1 1 12 1 Average Overweight (x) 2 | . . 6 . Largest Inventory Capacity 16 | 6 16 16 16 Average Capacity 13 | 6 9 16 10 Most Carried 16 | 6 16 16 16 Average Carried 13 | 4 9 16 9 Final Capacity 16 | 6 16 16 4 Final Carried 16 | 4 16 16 3 Class Distribution -------------------- 100% | Mutant Dominant Class ---------------- Mutant | -10/Materials Mutant | -10/Mines Mutant | -10/Exiles Resources | -11 -10 -10 -10 ----------- Run | Scr Mat Min Exi Matter Collected 1102 | 283 332 197 290 Remotely . | . . . . Salvage Created 507 | 161 339 1 6 Parts 32 | 9 23 . . Haulers Intercepted 2 | . 2 . . Recyclers Shooed 1 | . 1 . . Parts Field Recycled . | . . . . Retrieved Matter . | . . . . Parts Self-Destructed . | . . . . Prevented . | . . . . Kills | -11 -10 -10 -10 ------- Run | Scr Mat Min Exi Combat Hostiles Destroyed 16 | . 8 1 7 Guns 2 | . 2 . . AOE 14 | . 6 1 7 Classes Destroyed 8 | 2 5 1 . Worker 1 | . 1 . . Tunneler 3 | 3 . . . Hauler 2 | . 2 . . Recycler 2 | 1 1 . . Watcher 1 | . 1 . . Swarmer 6 | . 6 . . Grunt 2 | . 2 . . Assembled 8 | . . 1 7 Best Kill Streak 7 | 2 5 1 7 Combat Bots Only 7 | . 5 1 7 Max Kills in Single Turn 3 | 1 3 1 2 Gunslinging . | . . . . Exploded 3 | . 3 1 2 Melee . | . . . . Uniques/NPCs Destroyed . | . . . . Combat | -11 -10 -10 -10 -------- Run | Scr Mat Min Exi Damage Taken 1701 | . 259 . 1442 Core 257 | . 32 . 225 Absorbed by Shields . | . . . . Core Remaining (%) 100 | 100 . . . Volleys Fired 83 | 10 21 1 51 Largest 2 | 2 2 2 2 Hottest 60 | 60 46 60 60 Shots Fired 138 | 20 37 2 79 Gun 115 | 20 32 . 63 Cannon . | . . . . Launcher 21 | . 5 2 14 Special 2 | . . . 2 Kinetic 106 | 11 32 . 63 Thermal 11 | 9 . . 2 Explosive 21 | . 5 2 14 Electromagnetic . | . . . . Robot Hit Streak 14 | 8 4 . 14 Robot Miss Streak 4 | 1 4 . 3 Penetration Max . | . . . . Secondary Targets . | . . . . Shots Hit Robots 88 | 14 18 . 56 Core Hits 52 | 4 22 1 25 Critical Hits . | . . . . Critical Kills . | . . . . Critical Parts Destroyed . | . . . . Melee Attacks . | . . . . Impact . | . . . . Slashing . | . . . . Piercing . | . . . . Sneak Attacks . | . . . . Combat Hostiles . | . . . . Follow-up Attacks . | . . . . Damage Inflicted 2198 | 198 584 49 1367 Guns 1158 | 198 182 . 778 Cannons . | . . . . Explosions 984 | . 378 49 557 Melee . | . . . . Ramming 54 | . 24 . 30 Kinetic 1058 | 98 182 . 778 Thermal 102 | 100 . . 2 Explosive 984 | . 378 49 557 Electromagnetic . | . . . . Impact . | . . . . Slashing . | . . . . Piercing . | . . . . Highest Corruption . | . . . . Average Corruption . | . . . . Corruption Purged . | . . . . Overload Shots . | . . . . Overflow Damage 92 | . 33 . 59 Projectiles . | . . . . Explosions 92 | . 33 . 59 Melee . | . . . . Knockbacks . | . . . . Impact . | . . . . Kinetic . | . . . . Secondary . | . . . . Self-Inflicted Damage 231 | . 51 . 180 Shots 7 | . 2 . 5 Rammed 23 | . 6 . 17 Targets Rammed 30 | . 7 . 23 Kicked 6 | . . . 6 Crushed 1 | . 1 . . Highest Temperature 100 | . 7 . 100 Average Temperature 35 | . 4 . 38 Received Heat Transfer 76 | . 36 . 40 Siege Activations . | . . . . Robots Corrupted . | . . . . Combat Hostiles . | . . . . Parts Fried . | . . . . Impact Corruptions . | . . . . Robots Melted . | . . . . Combat Hostiles . | . . . . Parts Melted . | . . . . Heat Transferred 243 | 225 . . 18 Parts Sabotaged . | . . . . Parts Stolen . | . . . . Parts Stripped . | . . . . Power Chain Reactions . | . . . . Missiles Intercepted . | . . . . Alert | -11 -10 -10 -10 ------- Run | Scr Mat Min Exi Peak Influence 133 | 20 133 15 . Initial 13 | . 13 . . Average 13 | 9 41 . . Maximum Alert Level . | . . . . Low Security (%) 100 | 100 100 100 . Level 1 . | . . . . Level 2 . | . . . . Level 3 . | . . . . Level 4 . | . . . . Level 5 . | . . . . High Security . | . . . . Max Security . | . . . . Squads Dispatched 2 | . 2 . . Investigation 2 | . 2 . . Extermination . | . . . . Reinforcement . | . . . . Assault . | . . . . Garrison . | . . . . Intercept . | . . . . Construction Impeded . | . . . . Haulers Reinforced . | . . . . Stealth | -11 -10 -10 -10 --------- Run | Scr Mat Min Exi Distress Signals . | . . . . Communications Jammed . | . . . . Distress Signals . | . . . . Times Spotted 22 | . 14 1 7 Peak Tracking Total 9 | . 7 1 9 Tactical Retreats . | . . . . Traps | -11 -10 -10 -10 ------- Run | Scr Mat Min Exi Traps Triggered 2 | . 2 . . Indirectly . | . . . . Trap Hack Attempts . | . . . . Triggered . | . . . . Disarmed . | . . . . Reprogrammed . | . . . . Reused . | . . . . Traps Extracted . | . . . . Installed . | . . . . Triggered . | . . . . Machines | -11 -10 -10 -10 ---------- Run | Scr Mat Min Exi Machines Disabled 8 | . . . 8 Max in Single Turn 3 | . . . 3 Machines Sabotaged . | . . . . Garrisons Compromised . | . . . . Overloaded Fab Kills . | . . . . Fab Network Shutdowns . | . . . . Hacking | -11 -10 -10 -10 --------- Run | Scr Mat Min Exi Machines Accessed 9 | . 8 . 1 Terminals 6 | . 6 . . Fabricators . | . . . . Repair Stations 1 | . 1 . . Recycling Units 1 | . 1 . . Scanalyzers . | . . . . Garrison Access . | . . . . Total Hacks 27 | . 26 . 1 Successful 15 | . 14 . 1 Failed 11 | . 11 . . Catastrophic 1 | . 1 . . Database Lockouts 1 | . 1 . . Manual 16 | . 15 . 1 Terminals 22 | . 22 . . Fabricators . | . . . . Repair Stations 2 | . 2 . . Recycling Units 2 | . 2 . . Scanalyzers . | . . . . Garrison Access . | . . . . Terminal Hacks 8 | . 7 . 1 Robot Analysis 2 | . 2 . . Prototype ID Bank 1 | . 1 . . Branch Access Points 2 | . 2 . . Locate Traps 2 | . 2 . . EX-Prototype ID Bank 1 | . . . 1 Fabricator Hacks . | . . . . Repair Station Hacks 2 | . 2 . . Scan Component 1 | . 1 . . Repair 1 | . 1 . . Recycling Unit Hacks . | . . . . Scanalyzer . | . . . . Garrison Access Hacks . | . . . . Unauthorized Hacks 5 | . 5 . . Terminals 3 | . 3 . . Track 2 | . 2 . . Operators 1 | . 1 . . Fabricators . | . . . . Repair Stations . | . . . . Recycling Units 2 | . 2 . . Recyclers 1 | . 1 . . Tunnel 1 | . 1 . . Scanalyzers . | . . . . Garrison Access . | . . . . Data Cores Recovered . | . . . . Used . | . . . . Hacking Detections 7 | . 7 . . Full Trace Events . | . . . . Feedback Events . | . . . . Feedback Blocked . | . . . . Robot Schematics Acquired . | . . . . Robots Built . | . . . . Matter . | . . . . Time . | . . . . Total Robot Build Rating . | . . . . Part Schematics Acquired . | . . . . Parts Built . | . . . . Matter . | . . . . Time . | . . . . Total Part Build Rating . | . . . . Parts Repaired 1 | . 1 . . Time 26 | . 26 . . Parts Recycled . | . . . . Recycled Matter . | . . . . Retrieved Matter . | . . . . Retrieved Components . | . . . . Parts Scanalyzed . | . . . . Part Schematics Acquired . | . . . . Parts Damaged . | . . . . Bothacking | -11 -10 -10 -10 ------------ Run | Scr Mat Min Exi Used RIF Installer . | . . . . Robots Hacked . | . . . . Non-combat . | . . . . Combat . | . . . . Robot Hacks Applied . | . . . . Relay Couplers Released . | . . . . Robots Rewired . | . . . . Allies Hacked . | . . . . Hacks Repelled . | . . . . Allies | -11 -10 -10 -10 -------- Run | Scr Mat Min Exi Total Allies . | . . . . Largest Group . | . . . . Highest-Rated Group . | . . . . Highest-Rated Ally . | . . . . Total Orders . | . . . . Ally Attacks . | . . . . Total Damage . | . . . . Kills . | . . . . Allies Corrupted . | . . . . Allies Melted . | . . . . Intel | -11 -10 -10 -10 ------- Run | Scr Mat Min Exi Robot Analysis Total 2 | . 2 . . Derelict Logs Recovered 2 | . . 2 . Drone Launches . | . . . . Drone Recoveries . | . . . . Exploration | -11 -10 -10 -10 ------------- Run | Scr Mat Min Exi Turns Passed 6054 | 83 1613 3666 692 Spaces Moved 1768 | 39 652 649 428 Core 366 | . . 366 . Treads 976 | . 575 283 118 Legs 322 | 12 . . 310 Wheels 104 | 27 77 . . Hover . | . . . . Flight . | . . . . Fastest Speed 90 | 90 90 160 90 Average Speed 247 | 102 157 436 109 Slowest Speed 650 | 120 180 650 180 Overloaded Moves . | . . . . Propulsion Burnouts . | . . . . Robots Hopped . | . . . . Cave-ins Triggered . | . . . . Exploration Rate (%) 51 | 5 87 46 67 Regions Visited 3 Branch Regions 2 Pre-discovered Areas 1 | . 1 . . Known Exits Taken 1 | . 1 . . Unknown Exits Taken 2 | 1 . 1 . Scrap Searched 2 | . . 2 . Spaces Dug 6 | . 6 . . Terrain Destroyed 109 | . 24 17 68 Melee . | . . . . Projectile . | . . . . AOE 109 | . 24 17 68 Terrain Rammed . | . . . . Walls Destroyed . | . . . . Machines Disabled . | . . . . Actions | -11 -10 -10 -10 --------- Run | Scr Mat Min Exi Total 3328 | 62 1197 1481 588 Wait 1336 | 4 459 832 41 Move 1765 | 38 651 648 428 Hop . | . . . . Pick Up 34 | 1 23 . 10 Fast Attach 16 | 1 4 . 11 Attach 7 | 2 2 . 3 Detach 3 | . 1 . 2 Swap 15 | 2 12 . 1 Drop 39 | 4 17 . 18 Fire 83 | 10 21 1 51 Melee . | . . . . Ram . | . . . . Kick 23 | . . . 23 Crush 7 | . 7 . . Escape Stasis . | . . . . Rewire . | . . . . Trap . | . . . . Miscellaneous . | . . . . Route ------- -11/Scrapyard -10/Materials (discovered 3 exits: [*Mat x2] / *Min) -10/Mines -10/Exiles History --------- Turn | Location | Event 1 | -11/Scrapyard | Discovered new exit (range 2) 84 | -11/Scrapyard | Entered Materials 312 | -10/Materials | Build established: Mutant 818 | -10/Materials | Central database locked down 1006 | -10/Materials | Discovered new exit (range 14) 1148 | -10/Materials | Discovered new exit (range 14) 1413 | -10/Materials | Repaired Lgt. Treads 1485 | -10/Materials | Discovered new exit (range 14) 1555 | -10/Materials | Identified exit to Mines 1697 | -10/Materials | Entered Mines 1698 | -10/Mines | Assembled infested the area 1698 | -10/Mines | Met a Derelict bent on vengeance 1703 | -10/Mines | Assisted by a Guerilla fighting off Assembled 5211 | -10/Mines | Deemed a non-threat by the Exiles lab entrance 5211 | -10/Mines | Discovered new exit (range 5) 5241 | -10/Mines | Learned Materials stockpile data 5249 | -10/Mines | Learned 2 Materials zone layouts 5273 | -10/Mines | A weapon hastily lodged in a ceiling crevice suddenly fell to the ground 5363 | -10/Mines | Entered Exiles 5407 | -10/Exiles | Met 8R-AWN 5431 | -10/Exiles | Met EX-HEX 5480 | -10/Exiles | Met EX-BIN 5503 | -10/Exiles | Aligned with FarCom system 5504 | -10/Exiles | Given EX-Vault access code 5541 | -10/Exiles | Opened EX-Vault 5551 | -10/Exiles | Found Potential Leg 5555 | -10/Exiles | Found Potential Leg 5559 | -10/Exiles | Found Superbattery 5563 | -10/Exiles | Found Flying Fortress v7 5582 | -10/Exiles | Warned to stay clear of 0b10 Research branches 5608 | -10/Exiles | Met EX-DEC 5823 | -10/Exiles | Attacked by the Exiles 5883 | -10/Exiles | Destroyed 7 combat bots 6001 | -10/Exiles | Core integrity fell below 50% 6043 | -10/Exiles | Core integrity fell below 20% 6055 | -10/Exiles | Destroyed by 8R-AWN with 8R-AWN's Boregun Last Messages --------------- 06043_ Penetrated by HV Slug. 06043_ Critical hit. 06043_ Potential Leg destroyed. 06043_ HV Slug penetrates Earth. 06043_ Slammed into 8R-AWN. 06044_ Kicked 8R-AWN out of the way. 06045_ Slammed into 8R-AWN. 06046_ Kicked 8R-AWN out of the way. 06047_ Slammed into 8R-AWN. 06047_ Penetrated by HV Slug. 06047_ HV Slug penetrates Wall. 06047_ Penetrated by HV Slug. 06047_ HV Slug penetrates Wall. 06048_ Slammed into 8R-AWN. 06051_ HV Slug penetrates Wall. 06051_ Penetrated by HV Slug. 06051_ HV Slug penetrates Wall. 06052_ Slammed into 8R-AWN. 06055_ Kicked 8R-AWN out of the way. 06055_ Penetrated by HV Slug. Map ----- +----------------------------------------------------+ | ?????????????????????????????????????????????? | | ?????????????????????????????????????????????? | | ?????????????????????????????????????????????? | | ?????????????????????????????????????????????? | | ?????????????????????????????????????????????? | | ?????????????????????????????????????????????? | | ?????????????????????????????????????????????? | | ?????????????????????????????????????????????? | | ????????????????????? ??????????????#######??? | | ????????????????????? ######???????#!!! "##?? | | ???????????????????? #""#????### " #?? | | ???????????????????? ???## # #?? | | ????????????????????" #??### #?? | | ????????????????????" ### # #?? | | ?????????????????????# #?? | | ??????????????????????# # #?? | | ?????????????????????????# #### | | ?????????????????????????#### # # | | ????????????????????????????### # | | ??????????????????????########" # # | | ??????????????????????# !! "= ## | | ???????????????????##?#! ! # | | ???????????????????# #; ! # ##" | | ??????????????????#?# # !! ! ##### | | ??????????????????# # ; ! ###???# | | ??????????????????# @g#######"#?????# | | ????????????????# # #??????# #????? | | ???????????????# # ###???????# #????### ## | | ?????????????# ####???????????# #??????##### | | ???????????# ?????????????????# #?????????# | | ?????????? ##???????????????????# #????????? | | ???????? #???????????????????????# #???????? | | ???????? #??????????????????????????# ???????? | | ?????????????????????????????????????? ??????? | | ??????????????????????????????????????? ?????? | | ?????????????????????????????????????????????? | | ?????????????????????????????????????????????? | | ?????????????????????????????????????????????# | | ?????????????????????????????????????????????? | | ?????????????????????????????????????????????? | | ?????????????????????????????????????????????? | | ?????????????????????????????????????????????? | | ?????????????????????????????????????????????? | | ?????????????????????????????????????????????? | | ?????????????????????????????????????????????? | | ?????????????????????????????????????????????? | | ?????????????????????????????????????????????? | | ?????????????????????????????????????????????? | | ?????????????????????????????????????????????? | | ?????????????????????????????????????????????? | +----------------------------------------------------+ Best States ------------- Heat Dissipation 25 Energy Generation 10 Energy Capacity 250 Matter Stores 300 Matter Capacity 300 Sight Range 16 Terrain Scan Range 16 Terrain Scan Density 10 Armor Coverage 300 Evasion (%) 42 Recoil Reduction 2 Item Schematics ----------------- None Robot Schematics ------------------ None Fabricated ------------ Nothing Alien Tech Used ----------------- None Achievements -------------- None Challenges ------------ None Game ------ Seed DisruptionBurstReactor Manual? 0 Play Time 00:23:43 Cumulative 326.5 hours Start 2022.01.24 @ 19:45:16 End 2022.01.24 @ 20:07:55 Sessions 1 Manual Loads 0 Difficulty Rogue Special Mode None Game No. 253 Rogue 253 Adventurer 0 Explorer 0 Win Type - Total 6 Types 5/0/1/0/0/0/0/0/0 Lore% 54 Gallery% 78 Achievement% 62 Wizard Run 0 Options --------- ASCII 0 Keyboard 0 Movement Numpad Keybinds 0 Fullscreen 2 Font 18/TerminusBold Map View 76x50 Tactical HUD 1 Map Filters NONE Filters NONE Steam 1 RUN: 026185bc-d70d-47ad-aded-c602def0cd08